fUST/lending_fUST_20250608
["ID","MTS","AMOUNT","RATE_DAILY","PERIOD"]
[364999087,1749388255718,-1266.57,0.00022191,4]
[364999088,1749388255728,-899.83,0.00022191,4]
[364999089,1749388255740,-440.0,0.00022191,4]
[364999090,1749388255773,-1564.27,0.00022191,4]
[364999091,1749388255796,-1000.0,0.00022192,2]
[364999092,1749388255822,-500.0,0.00022192,2]
[364999093,1749388255851,-7301.82319238,0.00022192,2]
[364999094,1749388255874,-156.60924,0.000222,7]
[364999095,1749388255899,-321.59414684,0.000222,69]
[364999096,1749388255923,-321.59414682,0.000222,69]
[364999097,1749388255940,-321.59414682,0.000222,69]
[364999098,1749388255961,-502.26417517,0.0002221,2]
[364999099,1749388255985,-503.86131124,0.0002221,2]
[364999100,1749388256010,-509.61112234,0.0002221,2]
[364999101,1749388256025,-1000.0,0.0002221,2]
[364999102,1749388256047,-1005.57380754,0.0002221,2]
[364999103,1749388256064,-1000.0,0.0002221,2]
[364999104,1749388256083,-1200.0,0.0002221,2]
[364999105,1749388256105,-1000.0,0.0002221,2]
[364999106,1749388256129,-1007.4909968,0.0002221,2]
[364999107,1749388256152,-1007.37303008,0.0002221,2]
[364999108,1749388256172,-1952.03440464,0.00022229,2]
[364999109,1749388256192,-151.0,0.00022229,7]
[364999110,1749388256211,-151.0,0.00022229,7]
[364999111,1749388256229,-151.0,0.00022229,7]
[364999112,1749388256248,-400.0,0.00022244,2]
[364999113,1749388256268,-800.0,0.00022269,2]
[364999114,1749388256285,-2024.25967761,0.00022284,2]
[364999115,1749388256303,-2099.15728568,0.00022339,2]
[364999116,1749388256322,-151.0,0.00022339,7]
[364999117,1749388256339,-151.0,0.00022339,7]
[364999118,1749388256357,-2176.82610525,0.00022394,2]
[364999119,1749388256374,-2257.36867115,0.00022449,2]
[364999120,1749388256392,-440.84,0.00022465,4]
[364999121,1749388256412,-519.49,0.00022465,4]
[364999122,1749388256430,-440.0,0.00022465,4]
[364999123,1749388256447,-500.0,0.00022465,2]
[364999124,1749388256464,-440.0,0.00022465,4]
[364999125,1749388256481,-440.0,0.00022465,4]
[364999126,1749388256498,-440.0,0.00022465,4]
[364999127,1749388256516,-1839.52,0.00022465,4]
[364999128,1749388256533,-405.53277726,0.00022465,4]
[364999129,1749388256552,-440.0,0.00022465,4]
[364999130,1749388256569,-440.0,0.00022465,4]
[364999131,1749388256585,-574.3,0.00022465,4]
[364999132,1749388256602,-326.28537315,0.00022465,4]
[364999133,1749388256619,-440.0,0.00022465,4]
[364999134,1749388256636,-151.0,0.00022465,7]
[364999135,1749388256654,-440.0,0.00022465,4]
[364999136,1749388256671,-153.718207,0.00022465,7]
[364999137,1749388256686,-721.65,0.00022465,4]
[364999138,1749388256812,-1486.17,0.00022465,4]
[364999139,1749388256830,-440.0,0.00022465,4]
[364999140,1749388256841,-440.0,0.00022465,4]
[364999141,1749388256851,-488.37,0.00022465,4]
[364999142,1749388256860,-151.0,0.00022465,7]
[364999143,1749388256870,-165.895707,0.00022465,7]
[364999144,1749388256880,-440.0,0.00022465,4]
[364999145,1749388256889,-440.0,0.00022465,4]
[364999146,1749388256899,-700.54,0.00022465,4]
[364999147,1749388256910,-151.0,0.00022465,7]
[364999148,1749388256920,-440.0,0.00022465,4]
[364999149,1749388256931,-1650.64,0.00022465,4]
[364999150,1749388256942,-151.0,0.00022465,7]
[364999151,1749388256953,-337.27521055,0.00022465,4]
[364999152,1749388256963,-2698.08,0.00022465,4]
[364999153,1749388256972,-689.16,0.00022465,4]
[364999154,1749388256982,-151.0,0.00022465,7]
[364999155,1749388256992,-3933.64,0.00022465,4]
[364999156,1749388257002,-440.0,0.00022465,4]
[364999157,1749388257012,-1002.52,0.00022465,4]
[364999158,1749388257022,-541.33,0.00022465,4]
[364999159,1749388257033,-440.0,0.00022465,4]
[364999160,1749388257043,-151.0,0.00022465,7]
[364999161,1749388257054,-1500.67,0.00022465,4]
[364999162,1749388257064,-2561.19,0.00022465,4]
[364999163,1749388257074,-440.0,0.00022465,4]
[364999164,1749388257084,-2272.7,0.00022465,4]
[364999165,1749388257094,-5064.66,0.00022465,4]
[364999166,1749388257104,-330.0,0.00022465,4]
[364999167,1749388257115,-750.62,0.00022465,4]
[364999168,1749388257124,-440.0,0.00022465,4]
[364999169,1749388257135,-597.14,0.00022465,4]
[364999170,1749388257144,-2854.42,0.00022465,4]
[364999171,1749388257154,-3549.42,0.00022465,4]
[364999172,1749388257165,-5228.29,0.00022465,4]
[364999173,1749388257175,-778.29,0.00022465,2]
[364999174,1749388257189,-440.0,0.00022465,4]
[364999175,1749388257199,-956.95,0.00022465,4]
[364999176,1749388257211,-2371.97,0.00022465,4]
[364999177,1749388257220,-350.0,0.00022465,4]
[364999178,1749388257231,-3033.26,0.00022465,4]
[364999179,1749388257241,-1266.57,0.00022465,4]
[364999180,1749388257251,-899.83,0.00022465,4]
[364999181,1749388257261,-440.0,0.00022465,4]
[364999182,1749388257270,-1564.27,0.00022465,4]
[364999183,1749388257280,-598.11005692,0.00022481,2]
[364999184,1749388257290,-7301.82319238,0.00022484,2]
[364999185,1749388257300,-800.0,0.00022503,2]
[364999186,1749388257311,-2340.89131198,0.00022504,2]
[364999187,1749388257324,-1500.0,0.0002251,2]
[364999188,1749388257334,-1918.73,0.00022535,2]
[364999189,1749388257344,-151.0,0.00022557,2]
[364999190,1749388257354,-5000.0,0.00022557,2]
[364999191,1749388257364,-2427.50429052,0.00022559,2]
[364999192,1749388257373,-5000.0,0.00022603,2]
[364999193,1749388257382,-2517.32194927,0.00022614,2]
[364999194,1749388257392,-405.0,0.00022629,2]
[364999195,1749388257401,-2610.4628614,0.00022669,2]
[364999196,1749388257411,-2126.80154097,0.00022724,2]
[364999197,1749388257421,-151.0,0.00022724,7]
[364999198,1749388257432,-151.0,0.00022724,7]
[364999199,1749388257442,-12500.0,0.0002273,3]
[364999200,1749388257452,-2331.3461548,0.00022739,3]
[364999201,1749388257463,-440.84,0.00022739,4]
[364999202,1749388257473,-519.49,0.00022739,4]
[364999203,1749388257484,-440.0,0.00022739,4]
[364999204,1749388257494,-440.0,0.00022739,4]
[364999205,1749388257504,-440.0,0.00022739,4]
[364999206,1749388257518,-12500.0,0.00022739,3]
[364999207,1749388257528,-500.0,0.00022739,6]
[364999208,1749388257538,-440.0,0.00022739,4]
[364999209,1749388257548,-1839.52,0.00022739,4]
[364999210,1749388257559,-440.0,0.00022739,4]
[364999211,1749388257569,-440.0,0.00022739,4]
[364999212,1749388257578,-574.3,0.00022739,4]
[364999213,1749388257588,-440.0,0.00022739,4]
[364999214,1749388257598,-440.0,0.00022739,4]
[364999215,1749388257608,-721.65,0.00022739,4]
[364999216,1749388257618,-1486.17,0.00022739,4]
[364999217,1749388257627,-440.0,0.00022739,4]
[364999218,1749388257637,-440.0,0.00022739,4]
[364999219,1749388257647,-488.37,0.00022739,4]
[364999220,1749388257657,-440.0,0.00022739,4]
[364999221,1749388257667,-440.0,0.00022739,4]
[364999222,1749388257677,-700.54,0.00022739,4]
[364999223,1749388257687,-440.0,0.00022739,4]
[364999224,1749388257697,-1650.64,0.00022739,4]
[364999225,1749388257707,-2698.08,0.00022739,4]
[364999226,1749388257717,-689.16,0.00022739,4]
[364999227,1749388257727,-3933.64,0.00022739,4]
[364999228,1749388257737,-310.0,0.00022739,4]
[364999229,1749388257747,-1002.52,0.00022739,4]
[364999230,1749388257757,-541.33,0.00022739,4]
[364999231,1749388257766,-440.0,0.00022739,4]
[364999232,1749388257776,-1500.67,0.00022739,4]
[364999233,1749388257786,-2561.19,0.00022739,4]
[364999234,1749388257796,-440.0,0.00022739,4]
[364999235,1749388257805,-2272.7,0.00022739,4]
[364999236,1749388257816,-5064.66,0.00022739,4]
[364999237,1749388257826,-750.62,0.00022739,4]
[364999238,1749388257835,-440.0,0.00022739,4]
[364999239,1749388257845,-597.14,0.00022739,4]
[364999240,1749388257856,-2854.42,0.00022739,4]
[364999241,1749388257866,-3549.42,0.00022739,4]
[364999242,1749388257876,-5228.29,0.00022739,4]
[364999243,1749388257886,-778.29,0.00022739,2]
[364999244,1749388257896,-440.0,0.00022739,4]
[364999245,1749388257906,-956.95,0.00022739,4]
[364999246,1749388257916,-2371.97,0.00022739,4]
[364999247,1749388257926,-3033.26,0.00022739,4]
[364999248,1749388257937,-1266.57,0.00022739,4]
[364999249,1749388257947,-899.83,0.00022739,4]
[364999250,1749388257959,-440.0,0.00022739,4]
[364999251,1749388257969,-1564.27,0.00022739,4]
[364999252,1749388257978,-1500.0,0.0002274,2]
[364999253,1749388257989,-1500.0,0.00022758,2]
[364999254,1749388257999,-1800.0,0.00022758,2]
[364999255,1749388258008,-504.82785283,0.00022758,2]
[364999256,1749388258017,-7301.82319238,0.00022775,2]
[364999257,1749388258027,-1027.89,0.00022829,30]
[364999258,1749388258036,-800.0,0.00022843,2]
[364999259,1749388258046,-321.59414682,0.00022928,72]
[364999260,1749388258056,-160.0,0.00023,3]
[364999261,1749388258066,-160.0,0.00023,3]
[364999262,1749388258076,-160.0,0.00023,3]
[364999263,1749388258087,-229.60437222,0.00023,3]
[364999264,1749388258097,-440.84,0.00023013,4]
[364999265,1749388258107,-519.49,0.00023013,4]
[364999266,1749388258118,-440.0,0.00023013,4]
[364999267,1749388258128,-500.0,0.00023013,2]
[364999268,1749388258138,-440.0,0.00023013,4]
[364999269,1749388258148,-440.0,0.00023013,4]
[364999270,1749388258158,-440.0,0.00023013,4]
[364999271,1749388258257,-1839.52,0.00023013,4]
[364999272,1749388258268,-440.0,0.00023013,4]
[364999273,1749388258278,-440.0,0.00023013,4]
[364999274,1749388258289,-574.3,0.00023013,4]
[364999275,1749388258300,-310.0,0.00023013,4]
[364999276,1749388258310,-440.0,0.00023013,4]
[364999277,1749388258320,-721.65,0.00023013,4]
[364999278,1749388258330,-1486.17,0.00023013,4]
[364999279,1749388258342,-440.0,0.00023013,4]
[364999280,1749388258353,-440.0,0.00023013,4]
[364999281,1749388258363,-488.37,0.00023013,4]
[364999282,1749388258373,-440.0,0.00023013,4]
[364999283,1749388258383,-440.0,0.00023013,4]
[364999284,1749388258393,-700.54,0.00023013,4]
[364999285,1749388258403,-503.09013383,0.00023013,4]
[364999286,1749388258414,-1650.64,0.00023013,4]
[364999287,1749388258424,-2698.08,0.00023013,4]
[364999288,1749388258434,-590.55058324,0.00023013,4]
[364999289,1749388259138,-612.44287502,0.00019165,2]
[364999290,1749388259148,-521.18868035,0.00019165,2]
[364999291,1749388259158,-521.18868035,0.00019165,2]
[364999292,1749388259168,-521.18868035,0.00019165,2]
[364999293,1749388259177,-521.18868035,0.00019165,2]
[364999294,1749388259187,-521.18868035,0.00019165,2]
[364999295,1749388259197,-521.18868035,0.00019165,2]
[364999296,1749388259207,-521.18868035,0.00019165,2]
[364999297,1749388259216,-521.18868035,0.00019165,2]
[364999298,1749388259226,-521.18868035,0.00019165,2]
[364999299,1749388259236,-521.18868035,0.00019165,2]
[364999300,1749388259246,-521.18868035,0.00019165,2]
[364999301,1749388259257,-521.18868035,0.00019165,2]
[364999302,1749388259267,-521.18868035,0.00019165,2]
[364999303,1749388259277,-521.18868035,0.00019165,2]
[364999304,1749388259286,-521.18868035,0.00019165,2]
[364999305,1749388259296,-521.18868035,0.00019165,2]
[364999306,1749388259305,-521.18868035,0.00019165,2]
[364999307,1749388259314,-521.18868035,0.00019165,2]
[364999308,1749388259324,-521.18868035,0.00019165,2]
[364999309,1749388259334,-440.0,0.00019178,2]
[364999310,1749388259344,-298.04696269,0.00019178,2]
[364999311,1749388259354,-440.0,0.00019178,2]
[364999312,1749388259444,-440.0,0.00019178,2]
[364999313,1749388259458,-213.05153702,0.00020268,2]
[364999314,1749388259468,-1118.41,0.00020821,2]
[364999315,1749388259478,-1118.41,0.00021095,2]
[364999316,1749388259488,-1118.41,0.00021369,2]
[364999317,1749388259498,-1118.41,0.00021643,2]
[364999318,1749388259508,-1118.41,0.00021917,2]
[364999319,1749388259524,-1118.41,0.00022191,4]
[364999320,1749388259534,-1118.41,0.00022465,4]
[364999321,1749388259544,-1118.41,0.00022739,4]
[364999322,1749388259553,-98.60941676,0.00023013,4]
[364999323,1749388259565,-3933.64,0.00023013,4]
[364999324,1749388259574,-1002.52,0.00023013,4]
[364999325,1749388259583,-541.33,0.00023013,4]
[364999326,1749388259595,-428.29126147,0.00023013,4]
[364999327,1749388259605,-1500.67,0.00023013,4]
[364999328,1749388259614,-2561.19,0.00023013,4]
[364999329,1749388259624,-440.0,0.00023013,4]
[364999330,1749388259634,-2272.7,0.00023013,4]
[364999331,1749388259643,-5064.66,0.00023013,4]
[364999332,1749388259654,-750.62,0.00023013,4]
[364999333,1749388259664,-440.0,0.00023013,4]
[364999334,1749388259674,-597.14,0.00023013,4]
[364999335,1749388259685,-2854.42,0.00023013,4]
[364999336,1749388259696,-3549.42,0.00023013,4]
[364999337,1749388259707,-5228.29,0.00023013,4]
[364999338,1749388259718,-778.29,0.00023013,2]
[364999339,1749388259729,-440.0,0.00023013,4]
[364999340,1749388259739,-956.95,0.00023013,4]
[364999341,1749388259749,-2371.97,0.00023013,4]
[364999342,1749388259759,-3033.26,0.00023013,4]
[364999343,1749388259769,-1266.57,0.00023013,4]
[364999344,1749388259783,-899.83,0.00023013,4]
[364999345,1749388259793,-440.0,0.00023013,4]
[364999346,1749388259804,-1564.27,0.00023013,4]
[364999347,1749388259815,-1118.41,0.00023013,4]
[364999348,1749388259827,-183.0,0.00023014,7]
[364999349,1749388259838,-433.57904682,0.00023058,2]
[364999350,1749388259850,-7301.82319238,0.00023067,2]
[364999351,1749388259860,-1700.0,0.00023074,2]
[364999352,1749388259869,-5000.0,0.00023105,2]
[364999353,1749388259879,-440.84,0.00023287,4]
[364999354,1749388259889,-519.49,0.00023287,4]
[364999355,1749388259898,-440.0,0.00023287,4]
[364999356,1749388259907,-440.0,0.00023287,4]
[364999357,1749388259918,-440.0,0.00023287,4]
[364999358,1749388259929,-500.0,0.00023287,7]
[364999359,1749388259939,-440.0,0.00023287,4]
[364999360,1749388259949,-1839.52,0.00023287,4]
[364999361,1749388259960,-440.0,0.00023287,4]
[364999362,1749388259970,-574.3,0.00023287,4]
[364999363,1749388259980,-440.0,0.00023287,4]
[364999364,1749388259991,-721.65,0.00023287,4]
[364999365,1749388260001,-1486.17,0.00023287,4]
[364999366,1749388260011,-440.0,0.00023287,4]
[364999367,1749388260022,-440.0,0.00023287,4]
[364999368,1749388260032,-488.37,0.00023287,4]
[364999369,1749388260042,-170.54313436,0.00023287,4]
[364999370,1749388260053,-440.0,0.00023287,4]
[364999371,1749388260063,-700.54,0.00023287,4]
[364999372,1749388260073,-1650.64,0.00023287,4]
[364999373,1749388260084,-2698.08,0.00023287,4]
[364999374,1749388260095,-689.16,0.00023287,4]
[364999375,1749388260105,-160.0,0.00023287,2]
[364999376,1749388260115,-3933.64,0.00023287,4]
[364999377,1749388260125,-1002.52,0.00023287,4]
[364999378,1749388260135,-541.33,0.00023287,4]
[364999379,1749388260145,-1500.67,0.00023287,4]
[364999380,1749388260156,-2561.19,0.00023287,4]
[364999381,1749388260166,-503.76106119,0.00023287,4]
[364999382,1749388260176,-2272.7,0.00023287,4]
[364999383,1749388260186,-5064.66,0.00023287,4]
[364999384,1749388260196,-750.62,0.00023287,4]
[364999385,1749388260206,-441.89,0.00023287,4]
[364999386,1749388260216,-597.14,0.00023287,4]
[364999387,1749388260226,-2854.42,0.00023287,4]
[364999388,1749388260236,-3549.42,0.00023287,4]
[364999389,1749388260247,-5228.29,0.00023287,4]
[364999390,1749388260257,-778.29,0.00023287,2]
[364999391,1749388260267,-560.01,0.00023287,4]
[364999392,1749388260277,-956.95,0.00023287,4]
[364999393,1749388260287,-2371.97,0.00023287,4]
[364999394,1749388260297,-3033.26,0.00023287,4]
[364999395,1749388260308,-1266.57,0.00023287,4]
[364999396,1749388260319,-899.83,0.00023287,4]
[364999397,1749388260329,-440.0,0.00023287,4]
[364999398,1749388260339,-1564.27,0.00023287,4]
[364999399,1749388260349,-1118.41,0.00023287,4]
[364999400,1749388260359,-2000.0,0.00023288,2]
[364999401,1749388260369,-2000.0,0.00023306,2]
[364999402,1749388260378,-2400.0,0.00023306,2]
[364999403,1749388260390,-1002.559488,0.00023314,3]
[364999404,1749388260400,-7301.82319238,0.00023359,2]
[364999405,1749388260411,-215.0738,0.00023378,2]
[364999406,1749388260420,-107838.02,0.000234,7]
[364999407,1749388260430,-2332.87,0.000234,7]
[364999408,1749388260439,-42791.84,0.000234,2]
[364999409,1749388260449,-151.0,0.000234,7]
[364999410,1749388260458,-151.716069,0.000234,7]
[364999411,1749388260468,-151.0,0.000234,7]
[364999412,1749388260477,-151.0,0.000234,7]
[364999413,1749388260487,-151.0,0.000234,7]
[364999414,1749388260497,-151.0,0.000234,7]
[364999415,1749388260507,-151.0,0.000234,7]
[364999416,1749388260521,-151.0,0.000234,7]
[364999417,1749388260530,-151.0,0.000234,7]
[364999418,1749388260540,-151.0,0.000234,7]
[364999419,1749388260550,-151.0,0.000234,7]
[364999420,1749388260562,-151.0,0.000234,7]
[364999421,1749388260572,-151.0,0.000234,7]
[364999422,1749388260581,-151.0,0.000234,7]
[364999423,1749388260592,-151.0,0.000234,7]
[364999424,1749388260605,-151.0,0.000234,7]
[364999425,1749388260619,-151.0,0.000234,7]
[364999426,1749388260629,-2398.41,0.00023474,2]
[364999427,1749388260708,-1453.73,0.000235,7]
[364999428,1749388260725,-151.0,0.000235,7]
[364999429,1749388260736,-151.0,0.000235,7]
[364999430,1749388260746,-151.0,0.000235,7]
[364999431,1749388260756,-151.0,0.000235,7]
[364999432,1749388260765,-151.0,0.000235,7]
[364999433,1749388260775,-151.0,0.000235,7]
[364999434,1749388260784,-151.0,0.000235,7]
[364999435,1749388260794,-440.84,0.00023561,4]
[364999436,1749388260803,-519.49,0.00023561,4]
[364999437,1749388260812,-165.9063081,0.00023561,4]
[364999438,1749388260822,-500.0,0.00023561,2]
[364999439,1749388260832,-151.0,0.00023561,7]
[364999440,1749388260842,-151.0,0.00023561,7]
[364999441,1749388260853,-151.0,0.00023561,7]
[364999442,1749388260863,-440.0,0.00023561,4]
[364999443,1749388260873,-440.0,0.00023561,4]
[364999444,1749388260882,-151.0,0.00023561,7]
[364999445,1749388260892,-440.0,0.00023561,4]
[364999446,1749388260902,-1839.52,0.00023561,4]
[364999447,1749388260911,-440.0,0.00023561,4]
[364999448,1749388260921,-574.3,0.00023561,4]
[364999449,1749388260930,-461.06966263,0.00023561,4]
[364999450,1749388260940,-721.65,0.00023561,4]
[364999451,1749388260950,-1486.17,0.00023561,4]
[364999452,1749388260961,-440.0,0.00023561,4]
[364999453,1749388260971,-440.0,0.00023561,4]
[364999454,1749388260981,-488.37,0.00023561,4]
[364999455,1749388260992,-440.0,0.00023561,4]
[364999456,1749388261003,-700.54,0.00023561,4]
[364999457,1749388261014,-1650.64,0.00023561,4]
[364999458,1749388261024,-2698.08,0.00023561,4]
[364999459,1749388261035,-689.16,0.00023561,4]
[364999460,1749388261044,-3933.64,0.00023561,4]
[364999461,1749388261054,-1002.52,0.00023561,4]
[364999462,1749388261065,-541.33,0.00023561,4]
[364999463,1749388261075,-1500.67,0.00023561,4]
[364999464,1749388261085,-2561.19,0.00023561,4]
[364999465,1749388261097,-2272.7,0.00023561,4]
[364999466,1749388261107,-5064.66,0.00023561,4]
[364999467,1749388261118,-750.62,0.00023561,4]
[364999468,1749388261128,-597.14,0.00023561,4]
[364999469,1749388261139,-2854.42,0.00023561,4]
[364999470,1749388261150,-3549.42,0.00023561,4]
[364999471,1749388261161,-5228.29,0.00023561,4]
[364999472,1749388261171,-778.29,0.00023561,2]
[364999473,1749388261180,-680.590552,0.00023561,7]
[364999474,1749388261190,-680.590552,0.00023561,7]
[364999475,1749388261200,-956.95,0.00023561,4]
[364999476,1749388261210,-2371.97,0.00023561,4]
[364999477,1749388261220,-3033.26,0.00023561,4]
[364999478,1749388261229,-1266.57,0.00023561,4]
[364999479,1749388261240,-899.83,0.00023561,4]
[364999480,1749388261250,-440.0,0.00023561,4]
[364999481,1749388261260,-1564.27,0.00023561,4]
[364999482,1749388261271,-1118.41,0.00023561,4]
[364999483,1749388261282,-151.0,0.00023565,7]
[364999484,1749388261293,-151.0,0.00023565,7]
[364999485,1749388261303,-842.5625,0.000236,7]
[364999486,1749388261315,-500.0,0.00023625,2]
[364999487,1749388261326,-505.32227117,0.00023625,2]
[364999488,1749388261337,-800.0,0.00023631,2]
[364999489,1749388261347,-7301.82319238,0.00023651,2]
[364999490,1749388261359,-5000.0,0.00023653,2]
[364999491,1749388261370,-235.529,0.0002369,2]
[364999492,1749388261380,-250.0,0.0002369,2]
[364999493,1749388261391,-152.115,0.0002369,2]
[364999494,1749388261402,-209.204,0.0002369,2]
[364999495,1749388261412,-823.0,0.00023691,2]
[364999496,1749388261422,-823.0,0.00023691,2]
[364999497,1749388261432,-2000.0,0.00023698,7]
[364999498,1749388261443,-2000.0,0.00023698,7]
[364999499,1749388261453,-2000.0,0.00023698,7]
[364999500,1749388261462,-2000.0,0.00023698,7]
[364999501,1749388261471,-2000.0,0.00023698,7]
[364999502,1749388261481,-2000.0,0.00023698,7]
[364999503,1749388261490,-2000.0,0.00023698,7]
[364999504,1749388261499,-2000.0,0.00023698,7]
[364999505,1749388261510,-2000.0,0.00023698,7]
[364999506,1749388261523,-2000.0,0.00023698,7]
[364999507,1749388261533,-2000.0,0.00023698,7]
[364999508,1749388261542,-2000.0,0.00023698,7]
[364999509,1749388261552,-2000.0,0.00023698,7]
[364999510,1749388261563,-865.6946667,0.00023698,7]
[364999511,1749388261572,-216.561,0.00023699,2]
[364999512,1749388261582,-965.62,0.00023699,2]
[364999513,1749388261593,-709.0,0.00023699,2]
[364999514,1749388261603,-2223.0,0.00023699,2]
[364999515,1749388261615,-1233.47,0.00023742,30]
[364999516,1749388261626,-986.0138735,0.00023753,3]
[364999517,1749388261636,-2200.0,0.0002376,2]
[364999518,1749388261647,-159.87566464,0.00023781,2]
[364999519,1749388261658,-825.69706914,0.0002379,2]
[364999520,1749388261667,-28355.52030404,0.000238,3]
[364999521,1749388261677,-250.0,0.000238,2]
[364999522,1749388261687,-250.0,0.000238,2]
[364999523,1749388261699,-250.0,0.000238,2]
[364999524,1749388261709,-250.0,0.000238,2]
[364999525,1749388261720,-250.0,0.000238,2]
[364999526,1749388261730,-250.0,0.000238,2]
[364999527,1749388261739,-250.0,0.000238,2]
[364999528,1749388261748,-250.0,0.000238,2]
[364999529,1749388261758,-250.0,0.000238,2]
[364999530,1749388261768,-250.0,0.000238,2]
[364999531,1749388261777,-250.0,0.000238,2]
[364999532,1749388261786,-250.0,0.000238,2]
[364999533,1749388261796,-250.0,0.000238,2]
[364999534,1749388261876,-250.0,0.000238,2]
[364999535,1749388261886,-250.0,0.000238,2]
[364999536,1749388261895,-250.0,0.000238,2]
[364999537,1749388261905,-250.0,0.000238,2]
[364999538,1749388261916,-296.6,0.000238,2]
[364999539,1749388261926,-160.0,0.000238,3]
[364999540,1749388261938,-3000.0,0.000238,2]
[364999541,1749388261949,-842.5625,0.000238,3]
[364999542,1749388261958,-423.98131849,0.000238,3]
[364999543,1749388261968,-1347.175356,0.000238,2]
[364999544,1749388261978,-315.11541396,0.000238,3]
[364999545,1749388261988,-160.0,0.00023808,8]
[364999546,1749388261999,-3000.0,0.0002381,2]
[364999547,1749388262008,-3000.0,0.0002382,2]
[364999548,1749388262019,-3000.0,0.0002383,2]
[364999549,1749388262029,-157.054028,0.0002383,7]
[364999550,1749388262041,-157.054028,0.0002383,7]
[364999551,1749388262050,-151.0,0.0002383,7]
[364999552,1749388262060,-440.84,0.00023835,4]
[364999553,1749388262070,-519.49,0.00023835,4]
[364999554,1749388262080,-440.0,0.00023835,4]
[364999555,1749388262091,-394.53,0.00023835,4]
[364999556,1749388262100,-500.0,0.00023835,8]
[364999557,1749388262111,-440.0,0.00023835,4]
[364999558,1749388262121,-1839.52,0.00023835,4]
[364999559,1749388262131,-440.0,0.00023835,4]
[364999560,1749388262142,-574.3,0.00023835,4]
[364999561,1749388262152,-721.65,0.00023835,4]
[364999562,1749388262162,-1486.17,0.00023835,4]
[364999563,1749388262172,-440.0,0.00023835,4]
[364999564,1749388262182,-440.0,0.00023835,4]
[364999565,1749388262192,-488.37,0.00023835,4]
[364999566,1749388262202,-700.54,0.00023835,4]
[364999567,1749388262212,-1650.64,0.00023835,4]
[364999568,1749388262222,-2698.08,0.00023835,4]
[364999569,1749388262233,-689.16,0.00023835,4]
[364999570,1749388262244,-3933.64,0.00023835,4]
[364999571,1749388262254,-1002.52,0.00023835,4]
[364999572,1749388262265,-541.33,0.00023835,4]
[364999573,1749388262275,-1500.67,0.00023835,4]
[364999574,1749388262285,-2561.19,0.00023835,4]
[364999575,1749388262295,-2272.7,0.00023835,4]
[364999576,1749388262305,-5064.66,0.00023835,4]
[364999577,1749388262315,-750.62,0.00023835,4]
[364999578,1749388262326,-597.14,0.00023835,4]
[364999579,1749388262336,-2854.42,0.00023835,4]
[364999580,1749388262345,-3549.42,0.00023835,4]
[364999581,1749388262357,-5228.29,0.00023835,4]
[364999582,1749388262371,-778.29,0.00023835,2]
[364999583,1749388262395,-956.95,0.00023835,4]
[364999584,1749388262413,-2371.97,0.00023835,4]
[364999585,1749388262436,-3033.26,0.00023835,4]
[364999586,1749388262460,-1266.57,0.00023835,4]